Workbook

Sheet Objetivo

Sheet PERSONAL
B1: CODIGO | C1: AREA | D1: ZONA | E1: PATERNO | F1: MATERNO | G1: NOMBRES | H1: SEXO | I1: FECNAC | J1: FECING | K1: CATEGO | L1: PAGO | M1: BONIFICACION | N1: DESC | O1: TODO
B2: ADM0013 | C2: ADM | D2: N | E2: Diaz | F2: Guevara | G2: Rosa | H2: F | I2: 1965-01-01 | J2: 1990-01-01 | K2: 1 | L2: 4125 | M2: =CHOOSE(K2,L2*10%,L2*8%,L2*6%) -> 412.5 | N2: =CHOOSE(K2,100,60,30) -> 100 | O2: =L2+M2-N2 -> 4437.5
B3: ADM0014 | C3: ADM | D3: N | E3: Saldana | F3: Solis | G3: Gaby | H3: F | I3: 1965-01-16 | J3: 1990-01-06 | K3: 2 | L3: 4125 | M3: 330 | N3: 60 | O3: =L3+M3-N3 -> 4395
B4: ADM0015 | C4: ADM | D4: N | E4: Nunez | F4: Casas | G4: Carmen | H4: F | I4: 1965-01-31 | J4: 1990-01-11 | K4: 1 | L4: 4125 | M4: 412.5 | N4: 100 | O4: 4437.5
B5: ADM0016 | C5: ADM | D5: S | E5: Campos | F5: Diaz | G5: Miriam | H5: M | I5: 1965-02-15 | J5: 1990-01-16 | K5: 1 | L5: 4125 | M5: 412.5 | N5: 100 | O5: 4437.5
B6: ADM0017 | C6: ADM | D6: S | E6: Alva | F6: Limonchi | G6: Mabel | H6: F | I6: 1965-03-02 | J6: 1990-01-21 | K6: 1 | L6: 4125 | M6: 412.5 | N6: 100 | O6: 4437.5
B7: ADM0018 | C7: ADM | D7: E | E7: Conde | F7: Barrientos | G7: Nancy | H7: M | I7: 1965-03-17 | J7: 1990-01-26 | K7: 3 | L7: 4125 | M7: 247.5 | N7: 30 | O7: 4342.5
B8: ADM0019 | C8: ADM | D8: E | E8: Valderrama | F8: Herrera | G8: Humberto | H8: M | I8: 1965-04-01 | J8: 1990-01-31 | K8: 3 | L8: 4725 | M8: 283.5 | N8: 30 | O8: 4978.5
B9: ADM0020 | C9: ADM | D9: O | E9: Mujica | F9: Laos | G9: Eddy | H9: M | I9: 1965-04-16 | J9: 1990-02-05 | K9: 3 | L9: 4725 | M9: 283.5 | N9: 30 | O9: 4978.5
B10: ADM0021 | C10: ADM | D10: O | E10: Valenzuela | F10: Checcllo | G10: Daniel | H10: M | I10: 1965-05-01 | J10: 1990-02-10 | K10: 3 | L10: 4725 | M10: 283.5 | N10: 30 | O10: 4978.5
B11: ADM0022 | C11: ADM | D11: O | E11: Hernandez | F11: Osorio | G11: Fidel | H11: M | I11: 1965-05-16 | J11: 1990-02-15 | K11: 1 | L11: 4725 | M11: 472.5 | N11: 100 | O11: 5097.5
B12: ADM0023 | C12: ADM | D12: O | E12: Medina | F12: Bendezu | G12: Carmen | H12: M | I12: 1965-05-31 | J12: 1990-02-20 | K12: 1 | L12: 4125 | M12: 412.5 | N12: 100 | O12: 4437.5
B13: ADM0024 | C13: ADM | D13: N | E13: Rueda | F13: San Martin | G13: Francisco | H13: M | I13: 1965-06-15 | J13: 1990-02-25 | K13: 2 | L13: 4725 | M13: 378 | N13: 60 | O13: 5043
B14: ADM0025 | C14: ADM | D14: E | E14: Soto | F14: Alegre | G14: Marco | H14: M | I14: 1965-06-30 | J14: 1990-03-02 | K14: 2 | L14: 4725 | M14: 378 | N14: 60 | O14: 5043
B15: ADM0026 | C15: ADM | D15: N | E15: Uribe | F15: Antunez | G15: Raul | H15: M | I15: 1965-07-15 | J15: 1990-03-07 | K15: 2 | L15: 4725 | M15: 378 | N15: 60 | O15: 5043
B16: ADM0027 | C16: ADM | D16: N | E16: Larragan | F16: Zimic | G16: Arturo | H16: M | I16: 1965-07-30 | J16: 1990-03-12 | K16: 1 | L16: 4725 | M16: 472.5 | N16: 100 | O16: 5097.5
B17: ADM0028 | C17: ADM | D17: S | E17: Antunez | F17: Bayona | G17: Erick | H17: M | I17: 1965-08-14 | J17: 1990-03-17 | K17: 3 | L17: 4725 | M17: 283.5 | N17: 30 | O17: 4978.5
B18: ADM0029 | C18: ADM | D18: S | E18: Regalado | F18: Antero | G18: Rosa | H18: F | I18: 1965-08-29 | J18: 1990-03-22 | K18: 2 | L18: 4125 | M18: 330 | N18: =CHOOSE(K18,100,60,30) -> 60 | O18: 4395
B19: ADM0030 | C19: ADM | D19: N | E19: Gomez | F19: Marca | G19: Ricardo | H19: M | I19: 1965-09-13 | J19: 1990-03-27 | K19: 2 | L19: 4725 | M19: 378 | N19: 60 | O19: 5043
B20: ADM0031 | C20: ADM | D20: N | E20: San Martin | F20: Marca | G20: Agustin | H20: M | I20: 1965-09-28 | J20: 1990-04-01 | K20: 1 | L20: 4725 | M20: 472.5 | N20: 100 | O20: 5097.5
B21: ADM0032 | C21: ADM | D21: N | E21: Sanchez | F21: Ciriaco | G21: Pedro | H21: M | I21: 1965-10-18 | J21: 1990-04-06 | K21: 2 | L21: 4725 | M21: 378 | N21: 60 | O21: 5043
B22: ADM0033 | C22: ADM | D22: S | E22: Castro | F22: Duarte | G22: Luis | H22: M | I22: 1965-11-07 | J22: 1990-04-11 | K22: 3 | L22: 4725 | M22: 283.5 | N22: 30 | O22: 4978.5
B23: ADM0034 | C23: ADM | D23: S | E23: Diaz | F23: Vargas | G23: Juan | H23: M | I23: 1965-11-27 | J23: 1990-04-16 | K23: 2 | L23: 4725 | M23: 378 | N23: 60 | O23: 5043
B24: ADM0035 | C24: ADM | D24: E | E24: Tantero | F24: Flores | G24: Jacinto | H24: M | I24: 1965-12-17 | J24: 1990-04-21 | K24: 1 | L24: 4725 | M24: 472.5 | N24: 100 | O24: 5097.5
B25: ADM0036 | C25: ADM | D25: E | E25: Caceres | F25: Alva | G25: Gualberto | H25: M | I25: 1966-01-06 | J25: 1990-04-26 | K25: 2 | L25: 2850 | M25: 228 | N25: 60 | O25: 3018
B26: ADM0037 | C26: ADM | D26: O | E26: Cochachin | F26: Capcha | G26: Joaquin | H26: M | I26: 1966-01-26 | J26: 1990-05-01 | K26: 2 | L26: 2850 | M26: 228 | N26: 60 | O26: 3018
B27: ADM0038 | C27: ADM | D27: O | E27: Martorrel | F27: Flores | G27: Jorge | H27: M | I27: 1966-02-15 | J27: 1990-05-06 | K27: 3 | L27: 2850 | M27: 171 | N27: 30 | O27: 2991
B28: ADM0039 | C28: ADM | D28: O | E28: Vargas | F28: Ruiz | G28: Fernando | H28: M | I28: 1966-03-07 | J28: 1990-05-11 | K28: 2 | L28: 2850 | M28: 228 | N28: 60 | O28: 3018
B29: ADM0040 | C29: ADM | D29: O | E29: Palomino | F29: Arias | G29: Jose | H29: M | I29: 1966-03-27 | J29: 1990-05-16 | K29: 2 | L29: 2850 | M29: 228 | N29: 60 | O29: 3018
B30: ADM0041 | C30: ADM | D30: O | E30: Palomino | F30: Esquerre | G30: Peter | H30: M | I30: 1966-04-16 | J30: 1990-05-22 | K30: 2 | L30: 2850 | M30: 228 | N30: 60 | O30: 3018
B31: ADM0042 | C31: ADM | D31: E | E31: Palpa | F31: Corochano | G31: Jacinto | H31: M | I31: 1966-05-06 | J31: 1990-05-28 | K31: 1 | L31: 2850 | M31: 285 | N31: 100 | O31: 3035
B32: ADM0043 | C32: ADM | D32: N | E32: Carrasco | F32: Pacharri | G32: Jorge | H32: M | I32: 1966-05-26 | J32: 1990-06-03 | K32: 2 | L32: 2850 | M32: 228 | N32: 60 | O32: 3018
B33: ADM0044 | C33: ADM | D33: N | E33: Canado | F33: Morales | G33: Arturo | H33: M | I33: 1966-06-15 | J33: 1990-06-09 | K33: 2 | L33: 2850 | M33: 228 | N33: 60 | O33: 3018
B34: ADM0045 | C34: ADM | D34: N | E34: Gonzales | F34: Lopez | G34: Alberto | H34: M | I34: 1966-07-05 | J34: 1990-06-15 | K34: 3 | L34: 2850 | M34: 171 | N34: 30 | O34: 2991
B35: ADM0046 | C35: ADM | D35: N | E35: Huraca | F35: Genoves | G35: Ana | H35: F | I35: 1966-07-25 | J35: 1990-06-21 | K35: 3 | L35: 2250 | M35: 135 | N35: 30 | O35: 2355
B36: ADM0047 | C36: ADM | D36: N | E36: Barrechana | F36: Jordano | G36: Ulises | H36: M | I36: 1966-08-14 | J36: 1990-06-27 | K36: 3 | L36: 2850 | M36: 171 | N36: 30 | O36: 2991
B37: ADM0048 | C37: ADM | D37: S | E37: Morante | F37: Bardelli | G37: Juan | H37: M | I37: 1966-09-03 | J37: 1990-07-03 | K37: 3 | L37: 2850 | M37: 171 | N37: 30 | O37: 2991
B38: ADM0049 | C38: ADM | D38: S | E38: Arias | F38: Graziano | G38: Luis | H38: M | I38: 1966-09-23 | J38: 1990-07-09 | K38: 1 | L38: 2850 | M38: 285 | N38: 100 | O38: 3035
B39: ADM0050 | C39: ADM | D39: E | E39: Torres | F39: Infante | G39: Manuel | H39: M | I39: 1966-10-13 | J39: 1990-07-15 | K39: 2 | L39: 2850 | M39: 228 | N39: 60 | O39: 3018
B40: ADM0051 | C40: ADM | D40: E | E40: Gonzales | F40: Infante | G40: Jony | H40: M | I40: 1966-11-02 | J40: 1990-07-21 | K40: 1 | L40: 2850 | M40: 285 | N40: 100 | O40: 3035
B41: ADM0052 | C41: ADM | D41: O | E41: Gonzales | F41: Gonzales | G41: Nicanor | H41: M | I41: 1966-11-22 | J41: 1990-07-27 | K41: 3 | L41: 2850 | M41: 171 | N41: 30 | O41: 2991
B42: ADM0053 | C42: ADM | D42: O | E42: Alva | F42: Vargas | G42: Ana | H42: F | I42: 1966-12-12 | J42: 1990-08-02 | K42: 3 | L42: 2250 | M42: 135 | N42: 30 | O42: 2355
B43: ADM0054 | C43: ADM | D43: O | E43: Valencia | F43: Zuloaga | G43: Susana | H43: F | I43: 1967-01-01 | J43: 1990-08-08 | K43: 3 | L43: 2250 | M43: 135 | N43: 30 | O43: 2355
B44: ADM0055 | C44: ADM | D44: O | E44: Valeriano | F44: Guillermo | G44: Jorge | H44: M | I44: 1967-01-21 | J44: 1990-08-14 | K44: 3 | L44: 2850 | M44: 171 | N44: 30 | O44: 2991
B45: ADM0056 | C45: ADM | D45: O | E45: Bolivar | F45: Banquero | G45: Aenaldo | H45: M | I45: 1967-02-10 | J45: 1990-08-20 | K45: 1 | L45: 2850 | M45: 285 | N45: 100 | O45: 3035
B46: ADM0057 | C46: ADM | D46: E | E46: Madrigal | F46: Fernandez | G46: Ana Luisa | H46: F | I46: 1967-03-02 | J46: 1990-08-26 | K46: 2 | L46: 2250 | M46: 180 | N46: 60 | O46: 2370
B47: ADM0058 | C47: ADM | D47: N | E47: Mateo | F47: Saladino | G47: Angela | H47: F | I47: 1967-03-22 | J47: 1990-09-01 | K47: 2 | L47: 2250 | M47: 180 | N47: 60 | O47: 2370
B48: ADM0059 | C48: ADM | D48: N | E48: Pomarino | F48: Chavez | G48: Isaac | H48: M | I48: 1967-04-11 | J48: 1990-09-07 | K48: 1 | L48: 2850 | M48: 285 | N48: 100 | O48: 3035
B49: ADM0060 | C49: ADM | D49: S | E49: Tartufo | F49: Cornejo | G49: Samuel | H49: M | I49: 1967-05-01 | J49: 1990-09-13 | K49: 3 | L49: 2850 | M49: 171 | N49: 30 | O49: 2991
B50: ADM0061 | C50: ADM | D50: S | E50: Leyva | F50: Arcano | G50: Genaro | H50: M | I50: 1967-05-21 | J50: 1990-09-19 | K50: 2 | L50: 2850 | M50: 228 | N50: 60 | O50: 3018
B51: ADM0062 | C51: ADM | D51: N | E51: Gutierrez | F51: Torres | G51: Hector | H51: M | I51: 1967-06-10 | J51: 1990-09-25 | K51: 1 | L51: 2850 | M51: 285 | N51: 100 | O51: 3035
B52: ADM0063 | C52: ADM | D52: N | E52: Japura | F52: Chachajaqu | G52: Augusto | H52: M | I52: 1967-06-30 | J52: 1990-10-01 | K52: 3 | L52: 2850 | M52: 171 | N52: 30 | O52: 2991
B53: ADM0064 | C53: ADM | D53: S | E53: Chaina | F53: Borda | G53: Alejandra | H53: F | I53: 1967-07-20 | J53: 1990-10-07 | K53: 1 | L53: 2250 | M53: 225 | N53: 100 | O53: 2375
B54: ADM0065 | C54: ADM | D54: S | E54: Garcia | F54: Conde | G54: Pamela | H54: M | I54: 1967-08-09 | J54: 1990-10-13 | K54: 1 | L54: 4125 | M54: 412.5 | N54: 100 | O54: 4437.5
B55: CON0010 | C55: CON | D55: E | E55: Editnivia | F55: Ramirez | G55: Ana | H55: F | I55: 1967-08-29 | J55: 1990-10-19 | K55: 3 | L55: 3544 | M55: 212.64 | N55: 30 | O55: 3726.64
B56: CON0011 | C56: CON | D56: E | E56: Ballardo | F56: Rueda | G56: Sonia | H56: F | I56: 1967-09-18 | J56: 1990-10-25 | K56: 2 | L56: 2875 | M56: 230 | N56: 60 | O56: 3045
B57: CON0012 | C57: CON | D57: O | E57: Bravo | F57: Carranza | G57: Julia | H57: F | I57: 1967-10-08 | J57: 1990-10-31 | K57: 3 | L57: 3475 | M57: 208.5 | N57: 30 | O57: 3653.5
B58: CON0013 | C58: CON | D58: O | E58: Alcazar | F58: Padilla | G58: Diana | H58: F | I58: 1967-10-28 | J58: 1990-11-06 | K58: 3 | L58: 2875 | M58: 172.5 | N58: 30 | O58: 3017.5
B59: CON0014 | C59: CON | D59: O | E59: Bellido | F59: Rueda | G59: Sonia | H59: F | I59: 1967-11-17 | J59: 1990-11-12 | K59: 2 | L59: 2875 | M59: 230 | N59: 60 | O59: 3045
B60: CON0015 | C60: CON | D60: O | E60: Urdanivia | F60: Ramires | G60: Ivonne | H60: F | I60: 1967-12-07 | J60: 1990-11-18 | K60: 3 | L60: 2875 | M60: 172.5 | N60: 30 | O60: 3017.5
B61: CON0016 | C61: CON | D61: N | E61: Altamirano | F61: Jaime | G61: Luis | H61: M | I61: 1967-12-27 | J61: 1990-11-24 | K61: 1 | L61: 3475 | M61: 347.5 | N61: 100 | O61: 3722.5
B62: CON0017 | C62: CON | D62: E | E62: Rodriguez | F62: Linares | G62: Juana | H62: F | I62: 1968-01-16 | J62: 1990-11-30 | K62: 2 | L62: 3475 | M62: 278 | N62: 60 | O62: 3693
B63: CON0018 | C63: CON | D63: N | E63: Levano | F63: Garcia | G63: Luis | H63: M | I63: 1968-02-05 | J63: 1990-12-06 | K63: 2 | L63: 2875 | M63: 230 | N63: 60 | O63: 3045
B64: CON0019 | C64: CON | D64: N | E64: Bendezu | F64: Ore | G64: Lazaro | H64: M | I64: 1968-02-25 | J64: 1990-12-12 | K64: 2 | L64: 3475 | M64: 278 | N64: 60 | O64: 3693
B65: CON0020 | C65: CON | D65: S | E65: Cerna | F65: Ortega | G65: Pedro | H65: M | I65: 1968-03-16 | J65: 1990-12-18 | K65: 1 | L65: 2875 | M65: 287.5 | N65: 100 | O65: 3062.5
B66: CON0021 | C66: CON | D66: S | E66: Piscoya | F66: Ramos | G66: Vicente | H66: M | I66: 1968-04-05 | J66: 1990-12-24 | K66: 2 | L66: 3475 | M66: =CHOOSE(K66,L66*10%,L66*8%,L66*6%) -> 278 | N66: =CHOOSE(K66,100,60,30) -> 60 | O66: =L66+M66-N66 -> 3693
B67: CON0022 | C67: CON | D67: N | E67: Chumpitaz | F67: Hoyos | G67: Jorge | H67: M | I67: 1968-04-25 | J67: 1990-12-30 | K67: 3 | L67: 3475 | M67: 208.5 | N67: 30 | O67: 3653.5
B68: CON0023 | C68: CON | D68: N | E68: Vivanco | F68: Arana | G68: Pedro | H68: M | I68: 1968-05-15 | J68: 1991-01-05 | K68: 3 | L68: 2875 | M68: 172.5 | N68: 30 | O68: 3017.5
B69: CON0024 | C69: CON | D69: N | E69: Solorzano | F69: Palacios | G69: Jenny | H69: F | I69: 1968-06-04 | J69: 1991-01-11 | K69: 1 | L69: 2875 | M69: 287.5 | N69: 100 | O69: 3062.5
B70: CON0025 | C70: CON | D70: S | E70: Galves | F70: Lujan | G70: Jesus | H70: M | I70: 1968-06-24 | J70: 1991-01-17 | K70: 1 | L70: 3475 | M70: 347.5 | N70: 100 | O70: 3722.5
B71: CON0026 | C71: CON | D71: S | E71: Trujillo | F71: Preda | G71: Carlos | H71: M | I71: 1968-07-14 | J71: 1991-01-23 | K71: 1 | L71: 3475 | M71: 347.5 | N71: 100 | O71: 3722.5
B72: CON0027 | C72: CON | D72: E | E72: Alcazar | F72: Ocampo | G72: Alberto | H72: M | I72: 1968-08-03 | J72: 1991-01-29 | K72: 1 | L72: 3475 | M72: 347.5 | N72: 100 | O72: 3722.5
B73: CON0028 | C73: CON | D73: E | E73: Melgar | F73: La Torre | G73: Jose | H73: M | I73: 1968-08-23 | J73: 1991-02-04 | K73: 3 | L73: 3475 | M73: 208.5 | N73: 30 | O73: 3653.5
B74: CON0029 | C74: CON | D74: O | E74: Alcalde | F74: Padilla | G74: Diana | H74: F | I74: 1968-09-12 | J74: 1991-02-10 | K74: 1 | L74: 2875 | M74: 287.5 | N74: 100 | O74: 3062.5
B75: CON0030 | C75: CON | D75: O | E75: Torres | F75: Moreno | G75: Miriam | H75: F | I75: 1968-10-02 | J75: 1991-02-16 | K75: 3 | L75: 2875 | M75: 172.5 | N75: 30 | O75: 3017.5
B76: CON0031 | C76: CON | D76: O | E76: Munares | F76: Tapia | G76: Elizabeth | H76: F | I76: 1968-10-22 | J76: 1991-02-22 | K76: 3 | L76: 2875 | M76: 172.5 | N76: 30 | O76: 3017.5
B77: CON0032 | C77: CON | D77: O | E77: Bullon | F77: Rueda | G77: Sonia | H77: F | I77: 1968-11-11 | J77: 1991-02-28 | K77: 3 | L77: 2875 | M77: 172.5 | N77: 30 | O77: 3017.5
B78: CON0033 | C78: CON | D78: O | E78: Vilchez | F78: Samalloa | G78: Gloria | H78: F | I78: 1968-12-01 | J78: 1991-03-06 | K78: 2 | L78: 2875 | M78: 230 | N78: 60 | O78: 3045
B79: CON0034 | C79: CON | D79: E | E79: Patiño | F79: Tovar | G79: Edson | H79: M | I79: 1968-12-21 | J79: 1991-03-12 | K79: 1 | L79: 3475 | M79: 347.5 | N79: 100 | O79: 3722.5
B80: CON0035 | C80: CON | D80: N | E80: Arangoitia | F80: Huamani | G80: Edgar | H80: M | I80: 1969-01-10 | J80: 1991-03-18 | K80: 3 | L80: 3475 | M80: 208.5 | N80: 30 | O80: 3653.5
B81: CON0036 | C81: CON | D81: N | E81: Jimenez | F81: Kenko | G81: Manuel | H81: M | I81: 1969-01-30 | J81: 1991-03-24 | K81: 3 | L81: 3475 | M81: 208.5 | N81: 30 | O81: 3653.5
B82: CON0037 | C82: CON | D82: N | E82: Lopez | F82: Mamani | G82: Federico | H82: M | I82: 1969-02-19 | J82: 1991-03-30 | K82: 2 | L82: 3475 | M82: 278 | N82: 60 | O82: 3693
B83: CON0038 | C83: CON | D83: N | E83: Huaman | F83: Fuentes | G83: Pedro | H83: M | I83: 1969-03-11 | J83: 1991-04-05 | K83: 2 | L83: 3475 | M83: 278 | N83: 60 | O83: 3693
B84: CON0039 | C84: CON | D84: N | E84: Huertas | F84: Jimenez | G84: Gonzalo | H84: M | I84: 1969-03-31 | J84: 1991-04-11 | K84: 3 | L84: 3475 | M84: 208.5 | N84: 30 | O84: 3653.5
B85: CON0040 | C85: CON | D85: S | E85: Humareda | F85: Gomez | G85: Pedro | H85: M | I85: 1969-04-20 | J85: 1991-04-17 | K85: 1 | L85: 3475 | M85: 347.5 | N85: 100 | O85: 3722.5
B86: CON0041 | C86: CON | D86: S | E86: Revilla | F86: Lopez | G86: Jose | H86: M | I86: 1969-05-10 | J86: 1991-04-23 | K86: 1 | L86: 3475 | M86: 347.5 | N86: 100 | O86: 3722.5
B87: CON0042 | C87: CON | D87: E | E87: Lopez | F87: Jimenez | G87: Filomeno | H87: M | I87: 1969-05-30 | J87: 1991-04-29 | K87: 1 | L87: 3475 | M87: 347.5 | N87: 100 | O87: 3722.5
B88: CON0043 | C88: CON | D88: N | E88: Peña | F88: Lopez | G88: Jose | H88: M | I88: 1969-06-19 | J88: 1991-05-05 | K88: 1 | L88: 3475 | M88: 347.5 | N88: 100 | O88: 3722.5
B89: CON0044 | C89: CON | D89: N | E89: Ferrel | F89: Fuentes | G89: Juan | H89: M | I89: 1969-07-09 | J89: 1991-05-11 | K89: 3 | L89: 3475 | M89: 208.5 | N89: 30 | O89: 3653.5
B90: CON0045 | C90: CON | D90: S | E90: Gonzales | F90: Jimenez | G90: Jorge | H90: M | I90: 1969-07-29 | J90: 1991-05-17 | K90: 1 | L90: 3475 | M90: 347.5 | N90: 100 | O90: 3722.5
B91: CON0046 | C91: CON | D91: S | E91: Jilguero | F91: Revoredo | G91: Victor | H91: M | I91: 1969-08-18 | J91: 1991-05-23 | K91: 1 | L91: 3475 | M91: 347.5 | N91: 100 | O91: 3722.5
B92: CON0047 | C92: CON | D92: E | E92: Huamani | F92: Jilguero | G92: Jorge | H92: M | I92: 1969-09-07 | J92: 1991-05-29 | K92: 2 | L92: 3475 | M92: 278 | N92: 60 | O92: 3693
B93: CON0048 | C93: CON | D93: E | E93: Gonzales | F93: Delfor | G93: Gonzalo | H93: M | I93: 1969-09-27 | J93: 1991-06-04 | K93: 2 | L93: 3475 | M93: 278 | N93: 60 | O93: 3693
B94: CON0049 | C94: CON | D94: O | E94: Kento | F94: Huaman | G94: Pedro | H94: M | I94: 1969-10-17 | J94: 1991-06-10 | K94: 1 | L94: 3475 | M94: 347.5 | N94: 100 | O94: 3722.5
B95: CON0050 | C95: CON | D95: O | E95: Tinoco | F95: Tarazona | G95: Marina | H95: F | I95: 1969-11-06 | J95: 1991-06-16 | K95: 1 | L95: 2875 | M95: 287.5 | N95: 100 | O95: 3062.5
B96: CON0051 | C96: CON | D96: O | E96: Lopez | F96: Jilguero | G96: Jose | H96: M | I96: 1969-11-26 | J96: 1991-06-22 | K96: 2 | L96: 3475 | M96: 278 | N96: 60 | O96: 3693
B97: CON0052 | C97: CON | D97: O | E97: Jimenez | F97: Valverde | G97: Juan | H97: M | I97: 1969-12-16 | J97: 1991-06-28 | K97: 1 | L97: 3475 | M97: 347.5 | N97: 100 | O97: 3722.5
B98: CON0053 | C98: CON | D98: N | E98: Huaman | F98: Delfor | G98: Jorge | H98: M | I98: 1970-01-05 | J98: 1991-07-04 | K98: 1 | L98: 3475 | M98: 347.5 | N98: 100 | O98: 3722.5
B99: CON0054 | C99: CON | D99: E | E99: Jacinto | F99: Quispe | G99: Hector | H99: M | I99: 1970-01-25 | J99: 1991-07-10 | K99: 3 | L99: 3475 | M99: 208.5 | N99: 30 | O99: 3653.5
B100: CON0055 | C100: CON | D100: N | E100: Jara | F100: French | G100: Victoria | H100: F | I100: 1970-02-14 | J100: 1991-07-16 | K100: 3 | L100: 2875 | M100: 172.5 | N100: 30 | O100: 3017.5
B101: CON0056 | C101: CON | D101: N | E101: Claudio | F101: Castilla | G101: Carlos | H101: M | I101: 1970-03-06 | J101: 1991-07-22 | K101: 3 | L101: 3475 | M101: 208.5 | N101: 30 | O101: 3653.5
B102: CON0057 | C102: CON | D102: S | E102: Paredes | F102: Arana | G102: Ruben | H102: M | I102: 1970-03-26 | J102: 1991-07-28 | K102: 3 | L102: 3475 | M102: 208.5 | N102: 30 | O102: 3653.5
B103: CON0058 | C103: CON | D103: S | E103: Bohorquez | F103: Altamirano | G103: Hector | H103: M | I103: 1970-04-15 | J103: 1991-08-03 | K103: 1 | L103: 3475 | M103: 347.5 | N103: 100 | O103: 3722.5
B104: CON0059 | C104: CON | D104: N | E104: De La Cruz | F104: Garcia | G104: Carmen | H104: F | I104: 1970-05-05 | J104: 1991-08-09 | K104: 3 | L104: 2875 | M104: 172.5 | N104: 30 | O104: 3017.5
B105: CON0060 | C105: CON | D105: N | E105: Aliaga | F105: Melgar | G105: Augusto | H105: M | I105: 1970-05-25 | J105: 1991-08-15 | K105: 3 | L105: 3475 | M105: 208.5 | N105: 30 | O105: 3653.5
B106: CON0061 | C106: CON | D106: N | E106: Quispe | F106: Chumbimune | G106: Armando | H106: M | I106: 1970-06-14 | J106: 1991-08-24 | K106: 3 | L106: 3600 | M106: 216 | N106: 30 | O106: 3786
B107: CON0062 | C107: CON | D107: S | E107: Huamani | F107: Yrigoyen | G107: Mireya | H107: F | I107: 1970-07-04 | J107: 1991-09-02 | K107: 3 | L107: 3000 | M107: 180 | N107: 30 | O107: 3150
B108: CON0063 | C108: CON | D108: S | E108: Ortega | F108: Abad | G108: Marina | H108: F | I108: 1970-07-24 | J108: 1991-09-11 | K108: 1 | L108: 3000 | M108: 300 | N108: 100 | O108: 3200
B109: CON0064 | C109: CON | D109: E | E109: Paz | F109: Lopez | G109: Jose | H109: M | I109: 1970-08-13 | J109: 1991-09-20 | K109: 3 | L109: 3600 | M109: 216 | N109: 30 | O109: 3786
B110: CON0065 | C110: CON | D110: E | E110: Puente | F110: Carhuaricr | G110: Hodi | H110: F | I110: 1970-09-02 | J110: 1991-09-29 | K110: 3 | L110: 3000 | M110: 180 | N110: 30 | O110: 3150
B111: CON0066 | C111: CON | D111: O | E111: Ruiz | F111: Castilla | G111: Claudio | H111: M | I111: 1970-09-22 | J111: 1991-10-08 | K111: 2 | L111: 3600 | M111: 288 | N111: 60 | O111: 3828
B112: CON0067 | C112: CON | D112: O | E112: Romero | F112: Rondan | G112: Cesar | H112: M | I112: 1970-10-12 | J112: 1991-10-17 | K112: 3 | L112: 3600 | M112: 216 | N112: 30 | O112: 3786
B113: CON0068 | C113: CON | D113: O | E113: Dionisio | F113: Ruiz | G113: Balmes | H113: M | I113: 1970-11-01 | J113: 1991-10-26 | K113: 2 | L113: 3600 | M113: 288 | N113: 60 | O113: 3828
B114: CON0069 | C114: CON | D114: O | E114: Espinoza | F114: Neyra | G114: Juan | H114: M | I114: 1970-11-21 | J114: 1991-11-04 | K114: 3 | L114: 3600 | M114: 216 | N114: 30 | O114: 3786
B115: CON0070 | C115: CON | D115: O | E115: Vela | F115: Aparicio | G115: Marinoly | H115: F | I115: 1970-12-11 | J115: 1991-11-13 | K115: 2 | L115: 3000 | M115: 240 | N115: 60 | O115: 3180
B116: CON0071 | C116: CON | D116: E | E116: Paredes | F116: Arana | G116: Ruben | H116: M | I116: 1970-12-31 | J116: 1991-11-22 | K116: 1 | L116: 3600 | M116: 360 | N116: 100 | O116: 3860
B117: CON0072 | C117: CON | D117: N | E117: Paiba | F117: Cossios | G117: Manuel | H117: M | I117: 1971-01-20 | J117: 1991-12-01 | K117: 1 | L117: 3600 | M117: 360 | N117: 100 | O117: 3860
B118: CON0073 | C118: CON | D118: N | E118: Valdivia | F118: Altamirano | G118: Fernando | H118: M | I118: 1971-02-09 | J118: 1991-12-10 | K118: 1 | L118: 3600 | M118: 360 | N118: 100 | O118: 3860
B119: CON0074 | C119: CON | D119: N | E119: Zorozabal | F119: Garcia | G119: Carmen | H119: F | I119: 1971-03-01 | J119: 1991-12-19 | K119: 1 | L119: 3000 | M119: 300 | N119: 100 | O119: 3200
B120: CON0075 | C120: CON | D120: N | E120: Duran | F120: Hurtado | G120: Ivan | H120: M | I120: 1971-03-21 | J120: 1991-12-28 | K120: 2 | L120: 3600 | M120: 288 | N120: 60 | O120: 3828
B121: CON0076 | C121: CON | D121: N | E121: Torres | F121: Toledo | G121: Cesar | H121: M | I121: 1971-04-10 | J121: 1992-01-06 | K121: 1 | L121: 3600 | M121: 360 | N121: 100 | O121: 3860
B122: CON0077 | C122: CON | D122: S | E122: Allona | F122: Melgar | G122: Augusto | H122: M | I122: 1971-04-30 | J122: 1992-01-15 | K122: 2 | L122: 3600 | M122: 288 | N122: 60 | O122: 3828
B123: CON0078 | C123: CON | D123: S | E123: Lujan | F123: Rondo | G123: Antonio | H123: M | I123: 1971-05-20 | J123: 1992-01-24 | K123: 3 | L123: 3600 | M123: 216 | N123: 30 | O123: 3786
B124: CON0079 | C124: CON | D124: E | E124: Ibarra | F124: Garcia | G124: Sonia | H124: F | I124: 1971-06-09 | J124: 1992-02-02 | K124: 1 | L124: 3000 | M124: 300 | N124: 100 | O124: 3200
B125: CON0080 | C125: CON | D125: E | E125: Peralta | F125: Roca | G125: Sonia | H125: F | I125: 1971-06-29 | J125: 1992-02-11 | K125: 1 | L125: 3000 | M125: 300 | N125: 100 | O125: 3200
B126: CON0081 | C126: CON | D126: O | E126: Ramos | F126: Palomino | G126: Nancy | H126: F | I126: 1971-07-19 | J126: 1992-02-20 | K126: 1 | L126: 3000 | M126: 300 | N126: 100 | O126: 3200
B127: CON0082 | C127: CON | D127: O | E127: Merino | F127: Garcia | G127: Leidi | H127: F | I127: 1971-08-08 | J127: 1992-02-29 | K127: 2 | L127: 3000 | M127: 240 | N127: 60 | O127: 3180
B128: CON0083 | C128: CON | D128: O | E128: Peralta | F128: Hinostroza | G128: Elias | H128: M | I128: 1971-08-28 | J128: 1992-03-09 | K128: 2 | L128: 3600 | M128: 288 | N128: 60 | O128: 3828
B129: CON0084 | C129: CON | D129: O | E129: Dominguez | F129: Marquez | G129: Miriam | H129: F | I129: 1971-09-17 | J129: 1992-03-18 | K129: 3 | L129: 3000 | M129: 180 | N129: 30 | O129: 3150
B130: CON0085 | C130: CON | D130: O | E130: Alania | F130: Torres | G130: Jenny Caro | H130: F | I130: 1971-10-07 | J130: 1992-03-27 | K130: 1 | L130: 3000 | M130: =CHOOSE(K130,L130*10%,L130*8%,L130*6%) -> 300 | N130: =CHOOSE(K130,100,60,30) -> 100 | O130: =L130+M130-N130 -> 3200
B131: CON0086 | C131: CON | D131: E | E131: Munayco | F131: Garcia | G131: Damian | H131: M | I131: 1971-10-27 | J131: 1992-04-05 | K131: 2 | L131: 3600 | M131: 288 | N131: 60 | O131: 3828
B132: CON0087 | C132: CON | D132: N | E132: Apestegui | F132: Salvador | G132: Lucita | H132: F | I132: 1971-11-16 | J132: 1992-04-14 | K132: 3 | L132: 3000 | M132: 180 | N132: 30 | O132: 3150
B133: CON0088 | C133: CON | D133: N | E133: Ore | F133: Muñoz | G133: Blanca | H133: F | I133: 1971-12-06 | J133: 1992-04-23 | K133: 2 | L133: 3000 | M133: 240 | N133: 60 | O133: 3180
B134: CON0089 | C134: CON | D134: N | E134: Gomez | F134: Flores | G134: Delia | H134: F | I134: 1971-12-26 | J134: 1992-05-02 | K134: 2 | L134: 3000 | M134: 240 | N134: 60 | O134: 3180
B135: CON0090 | C135: CON | D135: N | E135: Tirado | F135: Idoña | G135: Haydee | H135: F | I135: 1972-01-15 | J135: 1992-05-11 | K135: 3 | L135: 3000 | M135: 180 | N135: 30 | O135: 3150
B136: CON0091 | C136: CON | D136: N | E136: Allende | F136: Padilla | G136: Diana | H136: F | I136: 1972-02-04 | J136: 1992-05-20 | K136: 2 | L136: 3000 | M136: 240 | N136: 60 | O136: 3180
B137: CON0092 | C137: CON | D137: S | E137: Diaz | F137: Portilla | G137: Victor | H137: M | I137: 1972-02-24 | J137: 1992-05-29 | K137: 2 | L137: 3600 | M137: 288 | N137: 60 | O137: 3828
B138: CON0093 | C138: CON | D138: S | E138: Toribio | F138: Olivos | G138: Yonny | H138: M | I138: 1972-03-15 | J138: 1992-06-07 | K138: 2 | L138: 3600 | M138: 288 | N138: 60 | O138: 3828
B139: CON0094 | C139: CON | D139: E | E139: Ruiz | F139: Galindo | G139: Carlos | H139: M | I139: 1972-04-04 | J139: 1992-06-16 | K139: 1 | L139: 3600 | M139: 360 | N139: 100 | O139: 3860
B140: CON0095 | C140: CON | D140: N | E140: Benaducci | F140: Manrique | G140: Gloria | H140: F | I140: 1972-04-24 | J140: 1992-06-25 | K140: 3 | L140: 3000 | M140: 180 | N140: 30 | O140: 3150
B141: CON0096 | C141: CON | D141: N | E141: Lau | F141: Li | G141: Hilda | H141: F | I141: 1972-05-14 | J141: 1992-07-04 | K141: 2 | L141: 3000 | M141: 240 | N141: 60 | O141: 3180
B142: CON0097 | C142: CON | D142: S | E142: Alipio | F142: Padilla | G142: Diana | H142: F | I142: 1972-06-03 | J142: 1992-07-13 | K142: 3 | L142: 3000 | M142: 180 | N142: 30 | O142: 3150
B143: CON0098 | C143: CON | D143: S | E143: Salhuana | F143: Quiroz | G143: Consuelo | H143: F | I143: 1972-06-23 | J143: 1992-07-22 | K143: 1 | L143: 3000 | M143: 300 | N143: 100 | O143: 3200
B144: CON0099 | C144: CON | D144: E | E144: Lozano | F144: Vallejo | G144: Ruth | H144: F | I144: 1972-07-13 | J144: 1992-07-31 | K144: 2 | L144: 4250 | M144: 340 | N144: 60 | O144: 4530
B145: CON0100 | C145: CON | D145: E | E145: Ramirez | F145: Llanos | G145: Maria | H145: F | I145: 1972-08-02 | J145: 1992-08-09 | K145: 1 | L145: 4250 | M145: 425 | N145: 100 | O145: 4575
B146: CON0101 | C146: CON | D146: O | E146: Seminario | F146: Castro | G146: Ana Maria | H146: F | I146: 1972-08-22 | J146: 1992-08-18 | K146: 3 | L146: 4250 | M146: 255 | N146: 30 | O146: 4475
B147: CON0102 | C147: CON | D147: O | E147: Sanchez | F147: Campos | G147: Elsa | H147: F | I147: 1972-09-11 | J147: 1992-08-27 | K147: 1 | L147: 4250 | M147: 425 | N147: 100 | O147: 4575
B148: CON0103 | C148: CON | D148: O | E148: Cardenas | F148: Alva | G148: Alcira | H148: F | I148: 1972-10-01 | J148: 1992-09-05 | K148: 2 | L148: 4250 | M148: 340 | N148: 60 | O148: 4530
B149: CON0104 | C149: CON | D149: O | E149: Rosales | F149: Terrazas | G149: Ana | H149: F | I149: 1972-10-21 | J149: 1992-09-14 | K149: 2 | L149: 4250 | M149: 340 | N149: 60 | O149: 4530
B150: CON0105 | C150: CON | D150: N | E150: Valiente | F150: Cardenas | G150: Teresa | H150: F | I150: 1972-11-10 | J150: 1992-09-23 | K150: 2 | L150: 4250 | M150: 340 | N150: 60 | O150: 4530
B151: CON0106 | C151: CON | D151: E | E151: Zavala | F151: Aparicio | G151: Augustp | H151: M | I151: 1972-11-30 | J151: 1992-10-02 | K151: 1 | L151: 4850 | M151: 485 | N151: 100 | O151: 5235
B152: CON0107 | C152: CON | D152: N | E152: Marticoren | F152: Garcia | G152: Lucia | H152: F | I152: 1972-12-20 | J152: 1992-10-11 | K152: 1 | L152: 4250 | M152: 425 | N152: 100 | O152: 4575
B153: CON0108 | C153: CON | D153: N | E153: Amoros | F153: Terrones | G153: Mario | H153: M | I153: 1973-01-09 | J153: 1992-10-20 | K153: 2 | L153: 4850 | M153: 388 | N153: 60 | O153: 5178
B154: CON0109 | C154: CON | D154: S | E154: Perez | F154: Alcantara | G154: Miguel | H154: M | I154: 1973-01-29 | J154: 1992-10-29 | K154: 1 | L154: 4850 | M154: 485 | N154: 100 | O154: 5235
B155: CON0110 | C155: CON | D155: S | E155: Atencio | F155: Hurtado | G155: Nelly | H155: F | I155: 1973-02-18 | J155: 1992-11-07 | K155: 1 | L155: 4250 | M155: 425 | N155: 100 | O155: 4575
B156: CON0111 | C156: CON | D156: N | E156: Abarca | F156: Pezo | G156: Jose | H156: M | I156: 1973-03-10 | J156: 1992-11-16 | K156: 2 | L156: 4850 | M156: 388 | N156: 60 | O156: 5178
B157: CON0112 | C157: CON | D157: N | E157: Carrilo | F157: Bocanegra | G157: Doris | H157: F | I157: 1973-03-30 | J157: 1992-11-25 | K157: 3 | L157: 4250 | M157: 255 | N157: 30 | O157: 4475
B158: CON0113 | C158: CON | D158: N | E158: Peña | F158: Moreyra | G158: Doris | H158: F | I158: 1973-04-19 | J158: 1992-12-04 | K158: 3 | L158: 4250 | M158: 255 | N158: 30 | O158: 4475
B159: CON0114 | C159: CON | D159: S | E159: Galvez | F159: Perez | G159: Luisa | H159: F | I159: 1973-05-09 | J159: 1992-12-13 | K159: 2 | L159: 4250 | M159: 340 | N159: 60 | O159: 4530
B160: CON0115 | C160: CON | D160: S | E160: Carrillo | F160: Alcalde | G160: Diana | H160: F | I160: 1973-05-29 | J160: 1992-12-22 | K160: 2 | L160: 4250 | M160: 340 | N160: 60 | O160: 4530
B161: CON0116 | C161: CON | D161: E | E161: Seminario | F161: Peña | G161: Johan | H161: M | I161: 1973-06-18 | J161: 1992-12-31 | K161: 1 | L161: 4850 | M161: 485 | N161: 100 | O161: 5235
B162: CON0117 | C162: CON | D162: E | E162: Esparza | F162: Flores | G162: Alicia | H162: F | I162: 1973-07-08 | J162: 1993-01-09 | K162: 3 | L162: 4250 | M162: 255 | N162: 30 | O162: 4475
B163: CON0118 | C163: CON | D163: O | E163: Huapaya | F163: Pecho | G163: Gladys | H163: F | I163: 1973-07-28 | J163: 1993-01-18 | K163: 3 | L163: 4250 | M163: 255 | N163: 30 | O163: 4475
B164: CON0119 | C164: CON | D164: O | E164: Mujica | F164: Velez | G164: Rosa | H164: F | I164: 1973-08-17 | J164: 1993-01-27 | K164: 1 | L164: 4125 | M164: 412.5 | N164: 100 | O164: 4437.5
B165: CON0120 | C165: CON | D165: O | E165: Castillo | F165: Cardenas | G165: Dora | H165: F | I165: 1973-09-06 | J165: 1993-02-05 | K165: 1 | L165: 4125 | M165: 412.5 | N165: 100 | O165: 4437.5
B166: CON0121 | C166: CON | D166: O | E166: Carrasco | F166: Muñoz | G166: Domingo | H166: M | I166: 1973-09-26 | J166: 1993-02-14 | K166: 3 | L166: 4725 | M166: 283.5 | N166: 30 | O166: 4978.5
B167: CON0122 | C167: CON | D167: O | E167: Cardenas | F167: La Hoz | G167: Cecilia | H167: F | I167: 1973-10-16 | J167: 1993-02-23 | K167: 3 | L167: 4125 | M167: 247.5 | N167: 30 | O167: 4342.5
B168: CON0123 | C168: CON | D168: E | E168: Collantes | F168: Lavado | G168: Alejandro | H168: M | I168: 1973-11-05 | J168: 1993-03-04 | K168: 3 | L168: 4725 | M168: 283.5 | N168: 30 | O168: 4978.5
B169: CON0124 | C169: CON | D169: N | E169: Moreno | F169: Barzola | G169: Jaime | H169: M | I169: 1973-11-25 | J169: 1993-03-13 | K169: 3 | L169: 4725 | M169: 283.5 | N169: 30 | O169: 4978.5
B170: CON0125 | C170: CON | D170: N | E170: Carbajal | F170: Inocente | G170: Dora | H170: F | I170: 1973-12-15 | J170: 1993-03-22 | K170: 1 | L170: 4125 | M170: 412.5 | N170: 100 | O170: 4437.5
B171: CON0126 | C171: CON | D171: N | E171: Salazar | F171: Vivar | G171: Luz | H171: F | I171: 1970-01-04 | J171: 1993-03-31 | K171: 1 | L171: 4125 | M171: 412.5 | N171: 100 | O171: 4437.5
B172: CON0127 | C172: CON | D172: N | E172: Cabreba | F172: Garcia | G172: Jose | H172: M | I172: 1970-01-19 | J172: 1993-04-09 | K172: 2 | L172: 4725 | M172: 378 | N172: 60 | O172: 5043
B173: CON0128 | C173: CON | D173: N | E173: Medina | F173: Alvarez | G173: Carmen | H173: F | I173: 1970-02-03 | J173: 1993-04-18 | K173: 3 | L173: 4125 | M173: 247.5 | N173: 30 | O173: 4342.5
B174: CON0129 | C174: CON | D174: S | E174: Gonzales | F174: Hurtado | G174: Carmela | H174: F | I174: 1970-02-18 | J174: 1993-04-27 | K174: 3 | L174: 4125 | M174: 247.5 | N174: 30 | O174: 4342.5
B175: CON0130 | C175: CON | D175: S | E175: Lopez | F175: Capillo | G175: Carmela | H175: F | I175: 1970-03-05 | J175: 1993-05-06 | K175: 2 | L175: 4125 | M175: 330 | N175: 60 | O175: 4395
B176: CON0131 | C176: CON | D176: O | E176: Sotomayor | F176: Romero | G176: Dora | H176: F | I176: 1970-03-20 | J176: 1993-05-15 | K176: 3 | L176: 4725 | M176: 283.5 | N176: 30 | O176: 4978.5
B177: CON0132 | C177: CON | D177: O | E177: Molina | F177: Cordova | G177: Elena | H177: F | I177: 1970-04-04 | J177: 1993-05-24 | K177: 3 | L177: 4125 | M177: 247.5 | N177: 30 | O177: 4342.5
B178: CON0133 | C178: CON | D178: O | E178: Garcia | F178: Castillo | G178: Martha | H178: F | I178: 1970-04-19 | J178: 1993-06-02 | K178: 2 | L178: 4125 | M178: 330 | N178: 60 | O178: 4395
B179: CON0134 | C179: CON | D179: O | E179: Oyola | F179: Enriquez | G179: Maria | H179: F | I179: 1970-05-04 | J179: 1993-06-11 | K179: 2 | L179: 4125 | M179: 330 | N179: 60 | O179: 4395
B180: CON0135 | C180: CON | D180: O | E180: Vargas | F180: Paredes | G180: Jose Luis | H180: M | I180: 1970-05-19 | J180: 1993-06-20 | K180: 3 | L180: 4725 | M180: 283.5 | N180: 30 | O180: 4978.5
B181: CON0136 | C181: CON | D181: E | E181: Cardenas | F181: Diaz | G181: Nancy | H181: F | I181: 1970-06-03 | J181: 1985-01-01 | K181: 1 | L181: 4125 | M181: 412.5 | N181: 100 | O181: 4437.5
B182: CON0137 | C182: CON | D182: N | E182: Benites | F182: Blanco | G182: Miriam | H182: F | I182: 1970-06-18 | J182: 1985-01-01 | K182: 3 | L182: 4125 | M182: 247.5 | N182: 30 | O182: 4342.5
B183: CON0138 | C183: CON | D183: N | E183: Caveduque | F183: Chamorro | G183: Ana | H183: F | I183: 1970-07-03 | J183: 1985-01-01 | K183: 2 | L183: 4125 | M183: 330 | N183: 60 | O183: 4395
B184: CON0139 | C184: CON | D184: N | E184: Fernandez | F184: Cruz | G184: Marleny | H184: F | I184: 1970-07-18 | J184: 1985-01-01 | K184: 2 | L184: 4125 | M184: 330 | N184: 60 | O184: 4395
B185: CON0140 | C185: CON | D185: N | E185: Dominguez | F185: Calderon | G185: Olga | H185: F | I185: 1970-08-02 | J185: 1985-01-01 | K185: 2 | L185: 4125 | M185: 330 | N185: 60 | O185: 4395
B186: CON0141 | C186: CON | D186: N | E186: Morales | F186: Rengifo | G186: Isabell | H186: F | I186: 1970-08-17 | J186: 1985-01-01 | K186: 3 | L186: 4125 | M186: 247.5 | N186: 30 | O186: 4342.5
B187: INF0012 | C187: INF | D187: S | E187: Valverde | F187: Juro | G187: Fernando | H187: M | I187: 1970-09-01 | J187: 1975-01-12 | K187: 1 | L187: 2000 | M187: 200 | N187: 100 | O187: 2100
B188: INF0013 | C188: INF | D188: S | E188: Valdivia | F188: Lazo | G188: Alberto Ge | H188: M | I188: 1970-09-16 | J188: 1972-01-02 | K188: 2 | L188: 2023 | M188: 161.84 | N188: 60 | O188: 2124.84
B189: INF0014 | C189: INF | D189: E | E189: Torres | F189: Grados | G189: Washington | H189: M | I189: 1970-10-01 | J189: 1982-01-05 | K189: 1 | L189: 1698 | M189: 169.8 | N189: 100 | O189: 1767.8
B190: INF0015 | C190: INF | D190: N | E190: Torres | F190: Gamboa | G190: Juan | H190: M | I190: 1970-10-16 | J190: 1982-01-05 | K190: 2 | L190: 1700 | M190: 136 | N190: 60 | O190: 1776
B191: INF0016 | C191: INF | D191: N | E191: Torres | F191: Jimenez | G191: Galo Marci | H191: M | I191: 1970-10-31 | J191: 1970-01-01 | K191: 3 | L191: 2245 | M191: 134.7 | N191: 30 | O191: 2349.7
B192: INF0017 | C192: INF | D192: S | E192: Tenorio | F192: Carlos | G192: Nemesio Sa | H192: M | I192: 1970-11-15 | J192: 1975-01-12 | K192: 1 | L192: 1920 | M192: 192 | N192: 100 | O192: 2012
B193: INF0018 | C193: INF | D193: S | E193: Tello | F193: Vasquez | G193: Mario Albe | H193: M | I193: 1970-11-30 | J193: 1982-01-05 | K193: 2 | L193: 1668 | M193: 133.44 | N193: 60 | O193: 1741.44
B194: INF0019 | C194: INF | D194: E | E194: Supo | F194: Humpiri | G194: Fidel | H194: M | I194: 1970-12-15 | J194: 1993-02-14 | K194: 3 | L194: 1580 | M194: =CHOOSE(K194,L194*10%,L194*8%,L194*6%) -> 94.8 | N194: =CHOOSE(K194,100,60,30) -> 30 | O194: =L194+M194-N194 -> 1644.8
B195: INF0020 | C195: INF | D195: E | E195: Sullon | F195: Vilchez | G195: Modesto | H195: M | I195: 1970-12-30 | J195: 1985-11-02 | K195: 1 | L195: 2014 | M195: 201.4 | N195: 100 | O195: 2115.4
B196: INF0021 | C196: INF | D196: O | E196: Suarez | F196: Ojeda | G196: William | H196: M | I196: 1971-01-14 | J196: 1989-11-05 | K196: 2 | L196: 1876 | M196: 150.08 | N196: 60 | O196: 1966.08
B197: INF0022 | C197: INF | D197: O | E197: Silencio | F197: Huari | G197: Oscar Mari | H197: M | I197: 1971-01-29 | J197: 1970-01-01 | K197: 1 | L197: 2110 | M197: 211 | N197: 100 | O197: 2221
B198: INF0023 | C198: INF | D198: O | E198: Segura | F198: Santisteba | G198: Luis Enriq | H198: M | I198: 1971-02-13 | J198: 1975-01-12 | K198: 1 | L198: 1931 | M198: 193.1 | N198: 100 | O198: 2024.1
B199: INF0024 | C199: INF | D199: O | E199: Santos | F199: Canchucaja | G199: Jose Luis | H199: M | I199: 1971-02-28 | J199: 1975-01-12 | K199: 3 | L199: 1920 | M199: 115.2 | N199: 30 | O199: 2005.2
B200: INF0025 | C200: INF | D200: N | E200: Sandoval | F200: Mallqui | G200: Gilmer Roy | H200: M | I200: 1971-03-15 | J200: 1989-11-05 | K200: 1 | L200: 1885 | M200: 188.5 | N200: 100 | O200: 1973.5
... 239 more rows

Sheet Hoja2
B1: CODIGO | C1: (Todas)
B2: ZONA | C2: (Todas)
B4: Total | C4: CATEGO
B5: AREA | C5: 1 | D5: 2 | E5: 3 | F5: Total general
B6: MAR | C6: 101192.1 | D6: 87423.96 | E6: 78453.84 | F6: 267069.9
B7: ADM | C7: 67600 | D7: 70950 | E7: 60228 | F7: 198778
B8: CON | C8: 165980 | D8: 160377 | E8: 182357.64 | F8: 508714.64
B9: INF | C9: 52188.9 | D9: 53692.8 | E9: 55742.38 | F9: 161624.08
B10: SEB | C10: 13749.6 | D10: 11973.6 | E10: 4131.24 | F10: 29854.44
B11: SEE | C11: 12151.2 | D11: 19570.08 | E11: 21865.34 | F11: 53586.62
B12: VEN | C12: 77220 | D12: 44520 | E12: 56601 | F12: 178341
B13: Total general | C13: 490081.8 | D13: 448507.44 | E13: 459379.44 | F13: 1397968.68
